fUSD/lending_fUSD_20260703
["ID","MTS","AMOUNT","RATE_DAILY","PERIOD"]
[426938113,1783030231000,-500.0,0.00020096,2]
[426938071,1783030231000,-166.66,0.00019876,2]
[426938104,1783030231000,-500.0,0.00020096,2]
[426938090,1783030231000,-500.0,0.00020095,2]
[426938112,1783030231000,-344.64064857,0.00020096,2]
[426938098,1783030231000,-613.16190271,0.00020096,2]
[426938100,1783030231000,-500.0,0.00020096,2]
[426938082,1783030231000,-500.0,0.00020095,2]
[426938072,1783030231000,-225.49,0.00019891,2]
[426938076,1783030231000,-160.0,0.00019939,2]
[426938075,1783030231000,-1305.24710257,0.000199,2]
[426938083,1783030231000,-500.0,0.00020095,2]
[426938074,1783030231000,-10155.36602042,0.000199,2]
[426938081,1783030231000,-151.47,0.00020042,2]
[426938077,1783030231000,-216.69616408,0.00019939,2]
[426938079,1783030231000,-151.00057088,0.0002,20]
[426938084,1783030231000,-500.0,0.00020095,2]
[426938086,1783030231000,-600.0,0.00020095,2]
[426938088,1783030231000,-500.0,0.00020095,2]
[426938101,1783030231000,-532.78369113,0.00020096,2]
[426938102,1783030231000,-153.26418253,0.00020096,2]
[426938080,1783030231000,-896.0,0.00020006,2]
[426938099,1783030231000,-500.0,0.00020096,2]
[426938166,1783030232000,-500.0,0.00020096,2]
[426938158,1783030232000,-500.0,0.00020096,2]
[426938160,1783030232000,-500.0,0.00020096,2]
[426938169,1783030232000,-641.43003055,0.00020096,2]
[426938159,1783030232000,-500.0,0.00020096,2]
[426938157,1783030232000,-500.0,0.00020096,2]
[426938151,1783030232000,-500.0,0.00020096,2]
[426938154,1783030232000,-500.0,0.00020096,2]
[426938153,1783030232000,-500.0,0.00020096,2]
[426938155,1783030232000,-500.0,0.00020096,2]
[426938147,1783030232000,-500.0,0.00020096,2]
[426938149,1783030232000,-500.0,0.00020096,2]
[426938152,1783030232000,-187.60193486,0.00020096,2]
[426938156,1783030232000,-500.0,0.00020096,2]
[426938167,1783030232000,-641.43003055,0.00020096,2]
[426938171,1783030232000,-641.43003055,0.00020096,2]
[426938161,1783030232000,-500.0,0.00020096,2]
[426938163,1783030232000,-500.0,0.00020096,2]
[426938165,1783030232000,-500.0,0.00020096,2]
[426938162,1783030232000,-500.0,0.00020096,2]
[426938164,1783030232000,-500.0,0.00020096,2]
[426938170,1783030232000,-641.43003055,0.00020096,2]
[426938172,1783030232000,-307.95025851,0.00020096,2]
[426938180,1783030232000,-641.43003055,0.00020096,2]
[426938173,1783030232000,-333.47977204,0.00020096,2]
[426938175,1783030232000,-641.43003055,0.00020096,2]
[426938178,1783030232000,-500.0,0.00020096,2]
[426938182,1783030232000,-641.43003055,0.00020096,2]
[426938176,1783030232000,-500.0,0.00020096,2]
[426938150,1783030232000,-500.0,0.00020096,2]
[426938168,1783030232000,-641.43003055,0.00020096,2]
[426938148,1783030232000,-500.0,0.00020096,2]
[426938124,1783030232000,-500.0,0.00020096,2]
[426938145,1783030232000,-500.0,0.00020096,2]
[426938174,1783030232000,-500.0,0.00020096,2]
[426938115,1783030232000,-500.0,0.00020096,2]
[426938116,1783030232000,-500.0,0.00020096,2]
[426938117,1783030232000,-500.0,0.00020096,2]
[426938129,1783030232000,-500.0,0.00020096,2]
[426938118,1783030232000,-500.0,0.00020096,2]
[426938119,1783030232000,-500.0,0.00020096,2]
[426938120,1783030232000,-500.0,0.00020096,2]
[426938121,1783030232000,-500.0,0.00020096,2]
[426938128,1783030232000,-500.0,0.00020096,2]
[426938122,1783030232000,-500.0,0.00020096,2]
[426938123,1783030232000,-500.0,0.00020096,2]
[426938127,1783030232000,-500.0,0.00020096,2]
[426938126,1783030232000,-500.0,0.00020096,2]
[426938146,1783030232000,-500.0,0.00020096,2]
[426938125,1783030232000,-500.0,0.00020096,2]
[426938130,1783030232000,-500.0,0.00020096,2]
[426938132,1783030232000,-500.0,0.00020096,2]
[426938133,1783030232000,-500.0,0.00020096,2]
[426938143,1783030232000,-500.0,0.00020096,2]
[426938134,1783030232000,-500.0,0.00020096,2]
[426938135,1783030232000,-500.0,0.00020096,2]
[426938136,1783030232000,-500.0,0.00020096,2]
[426938139,1783030232000,-500.0,0.00020096,2]
[426938137,1783030232000,-500.0,0.00020096,2]
[426938140,1783030232000,-500.0,0.00020096,2]
[426938138,1783030232000,-500.0,0.00020096,2]
[426938141,1783030232000,-500.0,0.00020096,2]
[426938142,1783030232000,-500.0,0.00020096,2]
[426938144,1783030232000,-500.0,0.00020096,2]
[426938131,1783030232000,-500.0,0.00020096,2]
[426938177,1783030232000,-641.43003055,0.00020096,2]
[426938201,1783030232000,-500.0,0.00020096,2]
[426938179,1783030232000,-500.0,0.00020096,2]
[426938217,1783030232000,-500.0,0.00020096,2]
[426938218,1783030232000,-641.43003055,0.00020096,2]
[426938221,1783030232000,-619.42420801,0.00020096,2]
[426938219,1783030232000,-500.0,0.00020096,2]
[426938216,1783030232000,-641.43003055,0.00020096,2]
[426938220,1783030232000,-641.43003055,0.00020096,2]
[426938223,1783030232000,-641.43003055,0.00020096,2]
[426938228,1783030232000,-500.0,0.00020096,2]
[426938225,1783030232000,-641.43003055,0.00020096,2]
[426938227,1783030232000,-641.43003055,0.00020096,2]
[426938236,1783030232000,-641.43003055,0.00020096,2]
[426938231,1783030232000,-500.0,0.00020096,2]
[426938234,1783030232000,-641.43003055,0.00020096,2]
[426938232,1783030232000,-641.43003055,0.00020096,2]
[426938222,1783030232000,-641.43003055,0.00020096,2]
[426938226,1783030232000,-641.43003055,0.00020096,2]
[426938229,1783030232000,-641.43003055,0.00020096,2]
[426938235,1783030232000,-500.0,0.00020096,2]
[426938238,1783030232000,-488.09682343,0.00020096,2]
[426938237,1783030232000,-500.0,0.00020096,2]
[426938230,1783030232000,-500.0,0.00020096,2]
[426938240,1783030232000,-627.74618989,0.00020096,2]
[426938239,1783030232000,-11.90317657,0.00020096,2]
[426938242,1783030232000,-627.74618989,0.00020096,2]
[426938243,1783030232000,-627.74618989,0.00020096,2]
[426938241,1783030232000,-627.74618989,0.00020096,2]
[426938247,1783030232000,-500.0,0.00020096,2]
[426938245,1783030232000,-627.74618989,0.00020096,2]
[426938244,1783030232000,-627.74618989,0.00020096,2]
[426938181,1783030232000,-500.0,0.00020096,2]
[426938233,1783030232000,-500.0,0.00020096,2]
[426938214,1783030232000,-500.0,0.00020096,2]
[426938224,1783030232000,-500.0,0.00020096,2]
[426938215,1783030232000,-500.0,0.00020096,2]
[426938184,1783030232000,-500.0,0.00020096,2]
[426938183,1783030232000,-500.0,0.00020096,2]
[426938196,1783030232000,-500.0,0.00020096,2]
[426938186,1783030232000,-641.43003055,0.00020096,2]
[426938190,1783030232000,-641.43003055,0.00020096,2]
[426938185,1783030232000,-500.0,0.00020096,2]
[426938212,1783030232000,-641.43003055,0.00020096,2]
[426938194,1783030232000,-641.43003055,0.00020096,2]
[426938193,1783030232000,-500.0,0.00020096,2]
[426938192,1783030232000,-641.43003055,0.00020096,2]
[426938195,1783030232000,-500.0,0.00020096,2]
[426938187,1783030232000,-500.0,0.00020096,2]
[426938191,1783030232000,-500.0,0.00020096,2]
[426938189,1783030232000,-500.0,0.00020096,2]
[426938197,1783030232000,-641.43003055,0.00020096,2]
[426938188,1783030232000,-500.0,0.00020096,2]
[426938246,1783030232000,-627.74618989,0.00020096,2]
[426938199,1783030232000,-641.43003055,0.00020096,2]
[426938205,1783030232000,-641.43003055,0.00020096,2]
[426938200,1783030232000,-500.0,0.00020096,2]
[426938203,1783030232000,-500.0,0.00020096,2]
[426938204,1783030232000,-641.43003055,0.00020096,2]
[426938202,1783030232000,-641.43003055,0.00020096,2]
[426938213,1783030232000,-500.0,0.00020096,2]
[426938209,1783030232000,-500.0,0.00020096,2]
[426938208,1783030232000,-641.43003055,0.00020096,2]
[426938207,1783030232000,-500.0,0.00020096,2]
[426938206,1783030232000,-500.0,0.00020096,2]
[426938211,1783030232000,-500.0,0.00020096,2]
[426938210,1783030232000,-641.43003055,0.00020096,2]
[426938198,1783030232000,-500.0,0.00020096,2]
[426938250,1783030233000,-358.21679173,0.00020096,2]
[426938249,1783030233000,-253.0805942,0.00020096,2]
[426938248,1783030233000,-500.0,0.00020096,2]
[426938270,1783030237000,-627.74618989,0.00020096,2]
[426938267,1783030237000,-500.0,0.00020096,2]
[426938266,1783030237000,-627.74618989,0.00020096,2]
[426938273,1783030237000,-627.74618989,0.00020096,2]
[426938275,1783030237000,-500.0,0.00020096,2]
[426938265,1783030237000,-500.0,0.00020096,2]
[426938264,1783030237000,-500.0,0.00020096,2]
[426938259,1783030237000,-627.74618989,0.00020096,2]
[426938257,1783030237000,-16.44880396,0.00020096,2]
[426938262,1783030237000,-500.0,0.00020096,2]
[426938260,1783030237000,-500.0,0.00020096,2]
[426938261,1783030237000,-627.74618989,0.00020096,2]
[426938258,1783030237000,-500.0,0.00020096,2]
[426938271,1783030237000,-500.0,0.00020096,2]
[426938263,1783030237000,-627.74618989,0.00020096,2]
[426938268,1783030237000,-627.74618989,0.00020096,2]
[426938276,1783030237000,-627.74618989,0.00020096,2]
[426938269,1783030237000,-500.0,0.00020096,2]
[426938290,1783030237000,-356.17938934,0.00020096,2]
[426938288,1783030237000,-397.03279784,0.00020096,2]
[426938286,1783030237000,-500.0,0.00020096,2]
[426938287,1783030237000,-500.0,0.00020096,2]
[426938285,1783030237000,-627.74618989,0.00020096,2]
[426938280,1783030237000,-627.74618989,0.00020096,2]
[426938284,1783030237000,-500.0,0.00020096,2]
[426938274,1783030237000,-500.0,0.00020096,2]
[426938279,1783030237000,-3.74781531,0.00020096,2]
[426938272,1783030237000,-627.74618989,0.00020096,2]
[426938277,1783030237000,-500.0,0.00020096,2]
[426938289,1783030237000,-230.71339205,0.00020096,2]
[426938281,1783030237000,-300.0,0.00020096,2]
[426938282,1783030237000,-627.74618989,0.00020096,2]
[426938283,1783030237000,-500.0,0.00020096,2]
[426938278,1783030237000,-623.99837458,0.00020096,2]
[426938293,1783030238000,-4.43319945,0.00020096,2]
[426938291,1783030238000,-143.82061066,0.00020096,2]
[426938292,1783030238000,-627.74618989,0.00020096,2]
[426938306,1783030240000,-10155.36602042,0.000201,2]
[426938300,1783030240000,-495.56680055,0.00020096,2]
[426938302,1783030240000,-627.74618989,0.00020096,2]
[426938301,1783030240000,-500.0,0.00020096,2]
[426938308,1783030240000,-905.0,0.00020108,2]
[426938303,1783030240000,-500.0,0.00020096,2]
[426938305,1783030240000,-1843.30417601,0.000201,2]
[426938309,1783030240000,-1663.21831809,0.00020146,2]
[426938304,1783030240000,-627.74618999,0.00020096,2]
[426938313,1783030240000,-2093.26536558,0.000203,2]
[426938314,1783030240000,-7046.58297373,0.000203,2]
[426938310,1783030240000,-1896.66592225,0.00020146,2]
[426938312,1783030240000,-1843.30417601,0.000203,2]
[426938307,1783030240000,-1305.24710257,0.000201,2]
[426938311,1783030240000,-890.3,0.00020171,2]
[426938321,1783030243000,-2020.59582672,0.00020319,2]
[426938322,1783030243000,-317.56,0.00020319,2]
[426938319,1783030243000,-1015.51768111,0.000203,2]
[426938318,1783030243000,-300.0,0.00020096,2]
[426938320,1783030243000,-1305.24710257,0.000203,2]
[426938328,1783030245000,-457.8112788,0.00020321,2]
[426938326,1783030245000,-274.97,0.00020319,2]
[426938327,1783030245000,-936.72057329,0.00020319,2]
[426938325,1783030245000,-450.15359999,0.00020319,2]
[426938329,1783030246000,-2042.1887212,0.00020321,2]
[426938331,1783030246000,-1267.67334883,0.000205,2]
[426938330,1783030246000,-1843.30417601,0.000205,2]
[426938336,1783030254000,-177.0,0.0001611,2]
[426938337,1783030265000,-326.0,0.0001611,2]
[426938338,1783030265000,-193.0,0.00017721,2]
[426938339,1783030265000,-58.69641828,0.00017721,2]
[426938360,1783031398000,-1348.6304122,0.00014664,2]
[426938359,1783031398000,-223.17450606,0.00014483,7]
[426938358,1783031398000,-159.27904199,0.00014296,2]
[426938366,1783031431000,-312.92994147,0.00014664,2]
[426938367,1783031431000,-2515.17174318,0.00016069,2]
[426938369,1783031431000,-1055.20163512,0.00016069,2]
[426938370,1783031431000,-3043.41203285,0.00016069,2]
[426938371,1783031431000,-503.0,0.00017,2]
[426938368,1783031431000,-546.20966047,0.00016069,2]
[426938373,1783031431000,-153.0,0.00017721,2]
[426938374,1783031431000,-153.0,0.00017721,2]
[426938372,1783031431000,-151.0,0.00017721,2]
[426938376,1783031431000,-907.0,0.00017747,2]
[426938377,1783031431000,-896.0,0.00017775,2]
[426938378,1783031431000,-899.0,0.0001783,2]
[426938375,1783031431000,-900.0,0.00017734,2]
[426938393,1783031432000,-211.6987472,0.00018556,2]
[426938392,1783031432000,-211.6987472,0.00018556,2]
[426938396,1783031432000,-827.0,0.00018564,2]
[426938402,1783031432000,-1926.98,0.00018949,2]
[426938398,1783031432000,-2633.2,0.00018706,2]
[426938400,1783031432000,-712.24,0.00018899,2]
[426938404,1783031432000,-150.0,0.00018992,2]
[426938401,1783031432000,-5866.2735171,0.00018926,2]
[426938399,1783031432000,-1876.76,0.00018715,2]
[426938394,1783031432000,-211.6987472,0.00018556,2]
[426938397,1783031432000,-14177.05899422,0.00018565,2]
[426938387,1783031432000,-151.47,0.00018207,2]
[426938383,1783031432000,-15641.79051377,0.00017999,2]
[426938385,1783031432000,-157.15662245,0.00018099,2]
[426938391,1783031432000,-1000.0,0.00018556,2]
[426938389,1783031432000,-200.0,0.00018422,2]
[426938388,1783031432000,-2000.0,0.00018212,2]
[426938384,1783031432000,-150.0,0.00018084,2]
[426938386,1783031432000,-761.43,0.00018132,2]
[426938382,1783031432000,-506.0,0.00017973,2]
[426938380,1783031432000,-915.0,0.00017941,2]
[426938381,1783031432000,-910.0,0.00017941,2]
[426938379,1783031432000,-890.0,0.0001783,2]
[426938405,1783031432000,-908.0,0.0001913,2]
[426938390,1783031432000,-183.97,0.00018459,2]
[426938406,1783031432000,-2633.2,0.00019174,2]
[426938395,1783031432000,-211.6987472,0.00018556,2]
[426938408,1783031432000,-11617.69155605,0.00019193,2]
[426938411,1783031432000,-500.0,0.00019571,2]
[426938433,1783031432000,-848.31615817,0.00019898,2]
[426938434,1783031432000,-848.31615817,0.00019898,2]
[426938430,1783031432000,-848.31615817,0.00019898,2]
[426938431,1783031432000,-848.31615817,0.00019898,2]
[426938429,1783031432000,-848.31615817,0.00019898,2]
[426938426,1783031432000,-848.31615817,0.00019898,2]
[426938428,1783031432000,-848.31615817,0.00019898,2]
[426938427,1783031432000,-848.31615817,0.00019898,2]
[426938425,1783031432000,-848.31615817,0.00019898,2]
[426938423,1783031432000,-848.31615817,0.00019898,2]
[426938424,1783031432000,-848.31615817,0.00019898,2]
[426938432,1783031432000,-848.31615817,0.00019898,2]
[426938420,1783031432000,-600.75239403,0.00019898,2]
[426938410,1783031432000,-284.13,0.00019306,2]
[426938422,1783031432000,-848.31615817,0.00019898,2]
[426938412,1783031432000,-2633.2,0.00019641,2]
[426938414,1783031432000,-275.37450066,0.00019799,2]
[426938415,1783031432000,-848.31615817,0.00019898,2]
[426938413,1783031432000,-2209.87527038,0.00019664,2]
[426938416,1783031432000,-848.31615817,0.00019898,2]
[426938435,1783031432000,-378.66205006,0.00019898,2]
[426938419,1783031432000,-247.56376414,0.00019898,2]
[426938418,1783031432000,-848.31615817,0.00019898,2]
[426938421,1783031432000,-848.31615817,0.00019898,2]
[426938417,1783031432000,-848.31615817,0.00019898,2]
[426938446,1783031437000,-848.31615817,0.00019898,2]
[426938444,1783031437000,-469.65410811,0.00019898,2]
[426938445,1783031437000,-848.31615817,0.00019898,2]
[426938469,1783031438000,-848.31615817,0.00019898,2]
[426938474,1783031438000,-872.35391633,0.00019898,2]
[426938471,1783031438000,-848.31615817,0.00019898,2]
[426938473,1783031438000,-848.31615817,0.00019898,2]
[426938467,1783031438000,-848.31615817,0.00019898,2]
[426938472,1783031438000,-848.31615817,0.00019898,2]
[426938475,1783031438000,-872.35391633,0.00019898,2]
[426938484,1783031438000,-872.35391633,0.00019898,2]
[426938477,1783031438000,-872.35391633,0.00019898,2]
[426938480,1783031438000,-872.35391633,0.00019898,2]
[426938478,1783031438000,-872.35391633,0.00019898,2]
[426938479,1783031438000,-872.35391633,0.00019898,2]
[426938482,1783031438000,-872.35391633,0.00019898,2]
[426938481,1783031438000,-872.35391633,0.00019898,2]
[426938483,1783031438000,-872.35391633,0.00019898,2]
[426938470,1783031438000,-848.31615817,0.00019898,2]
[426938476,1783031438000,-872.35391633,0.00019898,2]
[426938468,1783031438000,-848.31615817,0.00019898,2]
[426938452,1783031438000,-848.31615817,0.00019898,2]
[426938464,1783031438000,-848.31615817,0.00019898,2]
[426938448,1783031438000,-848.31615817,0.00019898,2]
[426938447,1783031438000,-848.31615817,0.00019898,2]
[426938450,1783031438000,-848.31615817,0.00019898,2]
[426938451,1783031438000,-848.31615817,0.00019898,2]
[426938449,1783031438000,-848.31615817,0.00019898,2]
[426938486,1783031438000,-872.35391633,0.00019898,2]
[426938454,1783031438000,-848.31615817,0.00019898,2]
[426938453,1783031438000,-848.31615817,0.00019898,2]
[426938455,1783031438000,-848.31615817,0.00019898,2]
[426938457,1783031438000,-848.31615817,0.00019898,2]
[426938458,1783031438000,-292.39872323,0.00019898,2]
[426938463,1783031438000,-848.31615817,0.00019898,2]
[426938459,1783031438000,-555.91743494,0.00019898,2]
[426938461,1783031438000,-848.31615817,0.00019898,2]
[426938460,1783031438000,-848.31615817,0.00019898,2]
[426938456,1783031438000,-848.31615817,0.00019898,2]
[426938465,1783031438000,-848.31615817,0.00019898,2]
[426938466,1783031438000,-848.31615817,0.00019898,2]
[426938485,1783031438000,-872.35391633,0.00019898,2]
[426938462,1783031438000,-848.31615817,0.00019898,2]
[426938489,1783031438000,-872.35391633,0.00019898,2]
[426938526,1783031438000,-216.69616408,0.0001992,2]
[426938525,1783031438000,-500.0,0.00019913,2]
[426938513,1783031438000,-500.0,0.00019898,2]
[426938519,1783031438000,-246.85867428,0.00019898,2]
[426938515,1783031438000,-500.0,0.00019898,2]
[426938521,1783031438000,-10084.26236772,0.000199,2]
[426938517,1783031438000,-500.0,0.00019898,2]
[426938520,1783031438000,-1811.96501121,0.000199,2]
[426938527,1783031438000,-160.0,0.0001992,2]
[426938528,1783031438000,-160.0,0.00019922,2]
[426938529,1783031438000,-160.0,0.00019922,2]
[426938534,1783031438000,-448.3839659,0.00020053,2]
[426938533,1783031438000,-2500.0,0.00020053,2]
[426938531,1783031438000,-151.47,0.00020027,2]
[426938536,1783031438000,-1385.80819234,0.000201,2]
[426938535,1783031438000,-389.37725346,0.00020096,2]
[426938487,1783031438000,-872.35391633,0.00019898,2]
[426938511,1783031438000,-500.0,0.00019898,2]
[426938509,1783031438000,-500.0,0.00019898,2]
[426938523,1783031438000,-622.16021112,0.000199,2]
[426938507,1783031438000,-500.0,0.00019898,2]
[426938491,1783031438000,-872.35391633,0.00019898,2]
[426938503,1783031438000,-500.0,0.00019898,2]
[426938488,1783031438000,-872.35391633,0.00019898,2]
[426938496,1783031438000,-872.35391633,0.00019898,2]
[426938493,1783031438000,-872.35391633,0.00019898,2]
[426938492,1783031438000,-872.35391633,0.00019898,2]
[426938495,1783031438000,-872.35391633,0.00019898,2]
[426938494,1783031438000,-872.35391633,0.00019898,2]
[426938498,1783031438000,-872.35391633,0.00019898,2]
[426938490,1783031438000,-872.35391633,0.00019898,2]
[426938499,1783031438000,-872.35391633,0.00019898,2]
[426938501,1783031438000,-872.35391633,0.00019898,2]
[426938500,1783031438000,-872.35391633,0.00019898,2]
[426938505,1783031438000,-500.0,0.00019898,2]
[426938502,1783031438000,-872.35391633,0.00019898,2]
[426938504,1783031438000,-500.0,0.00019898,2]
[426938508,1783031438000,-500.0,0.00019898,2]
[426938506,1783031438000,-500.0,0.00019898,2]
[426938497,1783031438000,-872.35391633,0.00019898,2]
[426938537,1783031439000,-219.93,0.00019611,2]
[426938539,1783031439000,-7384.45623128,0.000201,2]
[426938538,1783031439000,-426.15681887,0.000201,2]
[426938540,1783031439000,-2699.80613644,0.000201,2]
[426938542,1783031439000,-2633.2,0.00020109,2]
[426938544,1783031439000,-500.0,0.00020152,2]
[426938543,1783031439000,-500.0,0.00020152,2]
[426938545,1783031439000,-588.48551969,0.00020152,2]
[426938547,1783031439000,-357.4421794,0.00020152,2]
[426938546,1783031439000,-637.00372376,0.00020152,2]
[426938548,1783031439000,-500.0,0.00020152,2]
[426938541,1783031439000,-622.16021112,0.000201,2]
[426938549,1783031440000,-500.0,0.00020152,2]
[426938552,1783031440000,-500.0,0.00020152,2]
[426938550,1783031440000,-500.0,0.00020152,2]
[426938555,1783031440000,-500.0,0.00020152,2]
[426938551,1783031440000,-500.0,0.00020152,2]
[426938553,1783031440000,-500.0,0.00020152,2]
[426938554,1783031440000,-500.0,0.00020152,2]
[426938556,1783031440000,-500.0,0.00020152,2]
[426938563,1783031440000,-953.0,0.00020153,2]
[426938560,1783031440000,-500.0,0.00020152,2]
[426938562,1783031440000,-19576.438217,0.00020153,2]
[426938557,1783031440000,-500.0,0.00020152,2]
[426938558,1783031440000,-198.24025583,0.00020152,2]
[426938559,1783031440000,-500.0,0.00020152,2]
[426938561,1783031440000,-462.96,0.00020153,2]
[426938567,1783031442000,-356.09052677,0.00020153,2]
[426938569,1783031443000,-3629.38212418,0.00020153,2]
[426938568,1783031443000,-308.90330274,0.00020153,2]
[426938588,1783031446000,-9898.86872995,0.00020153,2]
[426938587,1783031446000,-6824.35983841,0.00020153,2]
[426938586,1783031446000,-12136.24169121,0.00020153,2]
[426938591,1783031636000,-251.69641828,0.00017,2]
[426938598,1783032212000,-349.0,0.00016999,2]
[426938597,1783032212000,-151.0,0.00016999,2]
[426938599,1783032214000,-500.0,0.00016999,2]
[426938600,1783032216000,-500.0,0.00016999,2]
[426938604,1783032218000,-150.0,0.00017,2]
[426938603,1783032218000,-153.0,0.00016999,2]
[426938602,1783032218000,-150.0,0.00016999,2]
[426938601,1783032218000,-2.84550375,0.00016999,2]
[426938605,1783032218000,-44.15449625,0.00017,2]
[426938608,1783032219000,-151.0,0.00017,2]
[426938609,1783032219000,-90.15449625,0.00017,2]
[426938607,1783032219000,-151.0,0.00017,2]
[426938606,1783032219000,-107.84550375,0.00017,2]
[426938613,1783032220000,-134.15449625,0.00017,2]
[426938611,1783032220000,-152.0,0.00017,2]
[426938612,1783032220000,-151.0,0.00017,2]
[426938610,1783032220000,-62.84550375,0.00017,2]
[426938615,1783032222000,-151.0,0.00017,2]
[426938614,1783032222000,-16.84550375,0.00017,2]
[426938617,1783032222000,-150.0,0.00017,2]
[426938616,1783032222000,-151.0,0.00017,2]
[426938618,1783032222000,-31.15449625,0.00017,2]
[426938622,1783032314000,-149.0,0.00016719,2]
[426938621,1783032314000,-151.0,0.00016719,2]
[426938635,1783032633000,-150.0,0.00017,2]
[426938636,1783032633000,-152.0,0.00017,2]
[426938631,1783032633000,-1156.56160358,0.0001686,2]
[426938633,1783032633000,-119.84550375,0.00017,2]
[426938634,1783032633000,-152.0,0.00017,2]
[426938632,1783032633000,-237.76615844,0.0001686,2]
[426938648,1783032634000,-193.0,0.00018391,2]
[426938652,1783032634000,-211.69874719,0.0001869,2]
[426938650,1783032634000,-1042.05,0.00018593,2]
[426938656,1783032634000,-17072.2346051,0.0001872,2]
[426938653,1783032634000,-5664.73,0.0001872,2]
[426938658,1783032634000,-2000.0,0.00018727,2]
[426938654,1783032634000,-1065.44,0.0001872,2]
[426938659,1783032634000,-1000.0,0.0001876,2]
[426938651,1783032634000,-204.25,0.00018647,2]
[426938649,1783032634000,-603.46,0.00018551,2]
[426938637,1783032634000,-151.0,0.00017,2]
[426938647,1783032634000,-200.0,0.00018382,2]
[426938641,1783032634000,-151.0,0.00017,2]
[426938643,1783032634000,-141.15472376,0.00017,2]
[426938644,1783032634000,-397.84527624,0.00017,2]
[426938640,1783032634000,-78.09843465,0.00017,2]
[426938638,1783032634000,-151.0,0.00017,2]
[426938645,1783032634000,-502.0,0.00017,2]
[426938642,1783032634000,-152.0,0.00017,2]
[426938639,1783032634000,-72.90156535,0.00017,2]
[426938657,1783032634000,-9204.5753949,0.0001872,2]
[426938646,1783032634000,-902.0,0.00018221,2]
[426938660,1783032634000,-150.0,0.00018777,2]
[426938655,1783032634000,-1700.64,0.0001872,2]
[426938672,1783032634000,-901.0,0.00019564,2]
[426938662,1783032634000,-900.0,0.00018941,2]
[426938684,1783032634000,-500.0,0.00019599,2]
[426938685,1783032634000,-500.0,0.00019599,2]
[426938681,1783032634000,-884.0,0.00019592,2]
[426938688,1783032634000,-8936.75725225,0.000196,2]
[426938682,1783032634000,-225.53895044,0.00019599,2]
[426938683,1783032634000,-500.0,0.00019599,2]
[426938680,1783032634000,-151.0,0.00019592,2]
[426938678,1783032634000,-150.0,0.00019592,2]
[426938676,1783032634000,-882.8622625,0.0001957,2]
[426938674,1783032634000,-2114.85344681,0.0001957,2]
[426938687,1783032634000,-500.0,0.00019599,2]
[426938671,1783032634000,-900.0,0.00019564,2]
[426938669,1783032634000,-5528.0,0.000195,5]
[426938661,1783032634000,-643.81,0.00018896,2]
[426938686,1783032634000,-500.0,0.00019599,2]
[426938673,1783032634000,-514.06560759,0.0001957,2]
[426938665,1783032634000,-150.0,0.00019435,2]
[426938664,1783032634000,-151.0,0.00019435,2]
[426938666,1783032634000,-911.0,0.00019483,2]
[426938667,1783032634000,-905.0,0.00019483,2]
[426938670,1783032634000,-908.0,0.00019528,2]
[426938668,1783032634000,-163.91,0.00019493,2]
[426938663,1783032634000,-643.81,0.00019368,2]
[426938735,1783032638000,-500.0,0.00020098,2]
[426938734,1783032638000,-500.0,0.00020098,2]
[426938731,1783032638000,-500.0,0.00020098,2]
[426938729,1783032638000,-459.4080207,0.00020053,2]
[426938730,1783032638000,-500.0,0.00020098,2]
[426938725,1783032638000,-2575.0475049,0.00019972,2]